lending/lending_fUSD_20240131
["ID","MTS","AMOUNT","RATE_DAILY","PERIOD"]
[313085256,1706736173218,220.17,0.00021607,2]
[313085257,1706736177498,2500.0,0.00022465,2]
[313085258,1706736179575,685.23802666,0.00022466,2]
[313085259,1706736180817,13110.8185,0.00022464,2]
[313085260,1706736183182,3666.8342,0.00022464,2]
[313085261,1706736193111,9291.45,0.00021607,2]
[313085262,1706736216872,421.66,0.00019689,2]
[313085263,1706736217302,421.66,0.00021953,2]
[313085264,1706736247501,160.2785692,0.00022465,2]
[313085265,1706736249407,160.27856919,0.00022466,2]
[313085266,1706736251356,160.27856919,0.00022467,2]
[313085267,1706736251475,88005.0,0.00022339,2]
[313085268,1706736275070,268.45,0.00021613,2]
[313085270,1706736309583,7650.9737,0.00022464,2]
[313085271,1706736326171,782.5291,0.00022465,2]
[313085272,1706736344968,65318.5153,0.00022462,2]
[313085273,1706736347816,4472.3514161,0.00022465,2]
[313085274,1706736352369,7734.85455125,0.00022501,2]
[313085275,1706736380031,456.8253511,0.00022467,2]
[313085276,1706736389840,155.0,0.00022501,2]
[313085277,1706736394718,1259.57085833,0.00022501,2]
[313085278,1706736417022,492.7479,0.00022464,2]
[313085279,1706736417253,158.22,0.00021769,2]
[313085280,1706736417647,158.22,0.00022053,2]
[313085281,1706736417878,158.22,0.00022337,2]
[313085282,1706736439043,2500.0,0.00022465,2]
[313085283,1706736444669,184.94,0.00021635,2]
[313085284,1706736450982,207.4091,0.00022454,2]
[313085285,1706736475516,30926.7,0.00022464,2]
[313085286,1706736485564,353.31,0.000219,2]
[313085287,1706736507007,782.88,0.00021639,2]
[313085288,1706736534779,409.92,0.00021639,2]
[313085289,1706736538103,3913.30748914,0.00022465,2]
[313085290,1706736564824,155.0,0.00022501,2]
[313085291,1706736580403,304.55023406,0.00022467,2]
[313085292,1706736585273,-1000.0,0.00022502,2]
[313085293,1706736585295,-24410.55467101,0.00022502,2]
[313085294,1706736585316,-2259.64846432,0.00022502,2]
[313085295,1706736585337,-32260.35219724,0.00022503,2]
[313085296,1706736585358,-7232.61598302,0.00022504,2]
[313085297,1706736585379,-1848.89264938,0.0002251,2]
[313085298,1706736585400,-3174.66988128,0.0002251,2]
[313085299,1706736585421,-206.64381573,0.0002251,2]
[313085300,1706736585441,-2958.32358134,0.0002251,2]
[313085301,1706736585461,-6827.72173548,0.0002251,2]
[313085302,1706736585486,-205.31699869,0.0002251,4]
[313085303,1706736585505,-154.19383368,0.00022544,2]
[313085304,1706736585527,-704.40899641,0.00022554,2]
[313085305,1706736585547,-1632.45,0.00022554,2]
[313085306,1706736585568,-751.99,0.00022554,2]
[313085307,1706736585588,-15220.51,0.00022554,2]
[313085308,1706736585608,-227.33764624,0.00022555,2]
[313085309,1706736585629,-1007.8,0.00022555,2]
[313085310,1706736585648,-762.6005199,0.00022562,2]
[313085311,1706736585671,-228.3602233,0.00022562,2]
[313085312,1706736585690,-1245.40466885,0.00022562,2]
[313085313,1706736585710,-524.74206108,0.00022562,2]
[313085314,1706736585734,-201.21535719,0.00022562,2]
[313085315,1706736585754,-434.66438876,0.00022562,2]
[313085316,1706736585774,-155.19642721,0.00022562,2]
[313085317,1706736585794,-155.32764574,0.00022562,2]
[313085318,1706736585814,-212.8984188,0.00022562,2]
[313085319,1706736585834,-504.03826774,0.00022562,2]
[313085320,1706736585856,-155.0,0.00022562,2]
[313085321,1706736585878,-164.06048249,0.00022562,2]
[313085322,1706736585899,-172.02741418,0.00022562,2]
[313085323,1706736585920,-3234.95429051,0.00022562,2]
[313085324,1706736585941,-155.58071743,0.00022562,2]
[313085325,1706736585964,-324.04339551,0.00022562,2]
[313085326,1706736585990,-392.87874065,0.00022562,2]
[313085327,1706736586013,-156.62849969,0.00022562,2]
[313085328,1706736586041,-155.3207105,0.00022562,2]
[313085329,1706736586063,-345.64233863,0.00022562,2]
[313085330,1706736586084,-349.95702309,0.00022562,2]
[313085331,1706736586104,-259.51350751,0.00022562,2]
[313085332,1706736586124,-325.0531704,0.00022562,2]
[313085333,1706736586348,-3333.04721489,0.00022562,2]
[313085334,1706736586370,-249.77832007,0.00022562,2]
[313085335,1706736586391,-410.45065952,0.00022562,2]
[313085336,1706736586413,-506.81599061,0.00022562,2]
[313085337,1706736586433,-314.20154029,0.00022562,2]
[313085338,1706736586454,-332.79028713,0.00022562,2]
[313085339,1706736586475,-193.36517034,0.00022562,2]
[313085340,1706736586499,-524.26850226,0.00022562,2]
[313085341,1706736586519,-157.86817586,0.00022562,2]
[313085342,1706736586540,-412.24614915,0.00022562,2]
[313085343,1706736586563,-155.62623426,0.00022562,2]
[313085344,1706736586584,-1259.07435444,0.00022562,2]
[313085345,1706736586605,-322.86,0.00022562,2]
[313085346,1706736586625,-714.28,0.00022562,2]
[313085347,1706736586646,-426.37,0.00022562,2]
[313085348,1706736586667,-499.99,0.00022562,2]
[313085349,1706736586687,-1139.07947528,0.00022563,2]
[313085350,1706736586708,-336.72694485,0.00022563,2]
[313085351,1706736586733,-199.03575703,0.00022563,2]
[313085352,1706736586754,-3561.79,0.00022563,2]
[313085353,1706736586775,-999.99,0.00022563,2]
[313085354,1706736586795,-16151.35,0.00022563,2]
[313085355,1706736586816,-970.53281602,0.00022564,2]
[313085356,1706736586837,-500.0,0.00022564,2]
[313085357,1706736586858,-500.0,0.00022564,2]
[313085358,1706736586879,-500.0,0.00022564,2]
[313085359,1706736586899,-500.0,0.00022564,2]
[313085360,1706736586927,-500.0,0.00022564,2]
[313085361,1706736586948,-500.0,0.00022564,2]
[313085362,1706736586969,-500.0,0.00022564,2]
[313085363,1706736586994,-500.0,0.00022564,2]
[313085364,1706736587015,-500.0,0.00022564,2]
[313085365,1706736587037,-500.0,0.00022564,2]
[313085366,1706736587056,-500.0,0.00022564,2]
[313085367,1706736587077,-500.0,0.00022564,2]
[313085368,1706736587097,-500.0,0.00022564,2]
[313085369,1706736587117,-500.0,0.00022564,2]
[313085370,1706736587138,-500.0,0.00022564,2]
[313085371,1706736587161,-500.0,0.00022564,2]
[313085372,1706736587183,-500.0,0.00022564,2]
[313085373,1706736587204,-500.0,0.00022564,2]
[313085374,1706736587229,-500.0,0.00022564,2]
[313085375,1706736587251,-500.0,0.00022564,2]
[313085376,1706736587273,-500.0,0.00022564,2]
[313085377,1706736587293,-500.0,0.00022564,2]
[313085378,1706736587315,-500.0,0.00022564,2]
[313085379,1706736587335,-500.0,0.00022564,2]
[313085380,1706736587356,-500.0,0.00022564,2]
[313085381,1706736587377,-500.0,0.00022564,2]
[313085382,1706736587397,-500.0,0.00022564,2]
[313085383,1706736587419,-500.0,0.00022564,2]
[313085384,1706736587440,-500.0,0.00022564,2]
[313085385,1706736587460,-608.22178778,0.00022564,2]
[313085386,1706736587484,-500.0,0.00022564,2]
[313085387,1706736587504,-500.0,0.00022564,2]
[313085388,1706736587524,-500.0,0.00022564,2]
[313085389,1706736587556,-500.0,0.00022564,2]
[313085390,1706736587580,-500.0,0.00022564,2]
[313085391,1706736587603,-500.0,0.00022564,2]
[313085392,1706736587627,-500.0,0.00022564,2]
[313085393,1706736587652,-500.0,0.00022564,2]
[313085394,1706736587676,-500.0,0.00022564,2]
[313085395,1706736587701,-500.0,0.00022564,2]
[313085396,1706736587730,-500.0,0.00022564,2]
[313085397,1706736587757,-500.0,0.00022564,2]
[313085398,1706736587780,-500.0,0.00022564,2]
[313085399,1706736587802,-500.0,0.00022564,2]
[313085400,1706736587826,-500.0,0.00022564,2]
[313085401,1706736587848,-500.0,0.00022564,2]
[313085402,1706736587870,-500.0,0.00022564,2]
[313085403,1706736587891,-500.0,0.00022564,2]
[313085404,1706736587912,-500.0,0.00022564,2]
[313085405,1706736587933,-500.0,0.00022564,2]
[313085406,1706736587955,-500.0,0.00022564,2]
[313085407,1706736587980,-500.0,0.00022564,2]
[313085408,1706736588002,-500.0,0.00022564,2]
[313085409,1706736588024,-500.0,0.00022564,2]
[313085410,1706736588045,-500.0,0.00022564,2]
[313085411,1706736588066,-500.0,0.00022564,2]
[313085412,1706736588086,-500.0,0.00022564,2]
[313085413,1706736588108,-500.0,0.00022564,2]
[313085414,1706736588132,-500.0,0.00022564,2]
[313085415,1706736588155,-500.0,0.00022564,2]
[313085416,1706736588180,-500.0,0.00022564,2]
[313085417,1706736588202,-500.0,0.00022564,2]
[313085418,1706736588228,-500.0,0.00022564,2]
[313085419,1706736588253,-500.0,0.00022564,2]
[313085420,1706736588276,-500.0,0.00022564,2]
[313085421,1706736588297,-500.0,0.00022564,2]
[313085422,1706736588320,-500.0,0.00022564,2]
[313085423,1706736588344,-500.0,0.00022564,2]
[313085424,1706736588366,-500.0,0.00022564,2]
[313085425,1706736588389,-500.0,0.00022564,2]
[313085426,1706736588413,-500.0,0.00022564,2]
[313085427,1706736588434,-500.0,0.00022564,2]
[313085428,1706736588457,-500.0,0.00022564,2]
[313085429,1706736588482,-500.0,0.00022564,2]
[313085430,1706736588505,-500.0,0.00022564,2]
[313085431,1706736588526,-500.0,0.00022564,2]
[313085432,1706736588553,-500.0,0.00022564,2]
[313085433,1706736588578,-500.0,0.00022564,2]
[313085434,1706736588600,-500.0,0.00022564,2]
[313085435,1706736588622,-500.0,0.00022564,2]
[313085436,1706736588645,-500.0,0.00022564,2]
[313085437,1706736588667,-436.26019463,0.00022564,2]
[313085438,1706736588688,-500.0,0.00022564,2]
[313085439,1706736588710,-500.0,0.00022564,2]
[313085440,1706736588733,-500.0,0.00022564,2]
[313085441,1706736588756,-607.48077342,0.00022564,2]
[313085442,1706736588777,-607.48077342,0.00022564,2]
[313085443,1706736588801,-607.48077342,0.00022564,2]
[313085444,1706736588822,-607.48077342,0.00022564,2]
[313085445,1706736588845,-607.48077342,0.00022564,2]
[313085446,1706736588866,-607.48077342,0.00022564,2]
[313085447,1706736588887,-607.48077342,0.00022564,2]
[313085448,1706736588909,-607.48077342,0.00022564,2]
[313085449,1706736588930,-607.48077342,0.00022564,2]
[313085450,1706736588956,-607.48077342,0.00022564,2]
[313085451,1706736588980,-607.48077342,0.00022564,2]
[313085452,1706736589002,-607.48077342,0.00022564,2]
[313085453,1706736589025,-607.48077342,0.00022564,2]
[313085454,1706736589046,-607.48077342,0.00022564,2]
[313085455,1706736589068,-607.48077342,0.00022564,2]
[313085456,1706736589090,-607.48077342,0.00022564,2]
[313085457,1706736589111,-607.48077342,0.00022564,2]
[313085458,1706736589136,-607.48077342,0.00022564,2]
[313085459,1706736589158,-607.48077342,0.00022564,2]
[313085460,1706736589181,-607.48077342,0.00022564,2]
[313085461,1706736589204,-607.48077342,0.00022564,2]
[313085462,1706736589235,-607.48077342,0.00022564,2]
[313085463,1706736589261,-607.48077342,0.00022564,2]
[313085464,1706736589285,-607.48077342,0.00022564,2]
[313085465,1706736589309,-607.48077342,0.00022564,2]
[313085466,1706736589334,-607.48077342,0.00022564,2]
[313085467,1706736589358,-607.48077342,0.00022564,2]
[313085468,1706736589380,-607.48077342,0.00022564,2]
[313085469,1706736589401,-607.48077342,0.00022564,2]
[313085470,1706736589423,-607.48077342,0.00022564,2]
[313085471,1706736589445,-607.48077336,0.00022564,2]
[313085472,1706736589466,-168.42606924,0.00022564,2]
[313085473,1706736589492,-500.0,0.00022564,2]
[313085474,1706736589514,-500.0,0.00022564,2]
[313085475,1706736589536,-515.83462321,0.00022564,2]
[313085476,1706736589559,-1059746.75494357,0.00022565,2]
[313085477,1706736589580,-215123.027,0.00022566,2]
[313085478,1706736589600,-195881.7353,0.00022566,2]
[313085479,1706736589621,-641.49341512,0.00022567,2]
[313085480,1706736589642,-432.75226238,0.00022598,2]
[313085481,1706736589663,-414.04409356,0.00022598,2]
[313085482,1706736589684,-246.91049352,0.00022598,2]
[313085483,1706736589704,-500.0,0.00022598,2]
[313085484,1706736589727,-1948.88232519,0.00022598,2]
[313085485,1706736589755,-4882.23832841,0.00022598,2]
[313085486,1706736589784,-181.70651298,0.00022598,2]
[313085487,1706736589805,-745.07487801,0.00022598,2]
[313085488,1706736589827,-1331.92307958,0.00022598,2]
[313085489,1706736589848,-426.96015302,0.00022598,2]
[313085490,1706736589869,-383.76753435,0.00022598,2]
[313085491,1706736589890,-155.44390996,0.00022598,2]
[313085492,1706736589910,-831.61927221,0.00022598,2]
[313085493,1706736589930,-544.54781676,0.00022599,2]
[313085494,1706736589951,-4622.88856584,0.00022599,2]
[313085495,1706736589971,-129709.35521975,0.000226,2]
[313085496,1706736589995,-155.0,0.0002261,2]
[313085497,1706736590018,-158.22,0.0002262,2]
[313085498,1706736590041,-800.0,0.0002263,2]
[313085499,1706736590063,-400.0,0.0002263,2]
[313085500,1706736590084,-155.0,0.00022664,2]
[313085501,1706736590105,-155.86402743,0.00022664,2]
[313085502,1706736590126,-513.10638129,0.00022664,2]
[313085503,1706736590146,-157.62309731,0.00022664,2]
[313085504,1706736590167,-207.22351208,0.00022664,2]
[313085505,1706736590192,-2790.71044988,0.00022664,2]
[313085506,1706736590480,-159.45309107,0.00022664,2]
[313085507,1706736590502,-603.33877856,0.00022664,2]
[313085508,1706736590523,-1863.19236501,0.00022664,2]
[313085509,1706736590544,-164.14361697,0.00022664,2]
[313085510,1706736590566,-228.83453251,0.00022664,2]
[313085511,1706736590588,-226.83202517,0.00022664,2]
[313085512,1706736590610,-241.07606728,0.00022664,2]
[313085513,1706736590632,-245.41775099,0.00022664,2]
[313085514,1706736590655,-266.13518399,0.00022665,2]
[313085515,1706736590677,-6006.28495536,0.00022665,2]
[313085516,1706736590699,-524.86593909,0.00022666,2]
[313085517,1706736590722,-294.02403229,0.00022666,2]
[313085518,1706736590749,-227.33764624,0.00022686,2]
[313085519,1706736590770,-9760.7759,0.00022696,2]
[313085520,1706736590791,-9116.295,0.00022696,2]
[313085521,1706736590812,-5425.7745,0.00022696,2]
[313085522,1706736590833,-184.94,0.00022717,2]
[313085523,1706736590855,-295.25,0.00022721,2]
[313085524,1706736590878,-150.0,0.00022728,2]
[313085525,1706736590902,-150.0,0.00022734,2]
[313085526,1706736590924,-150.0,0.00022754,2]
[313085527,1706736590948,-150.0,0.00022758,2]
[313085528,1706736590970,-29065.0,0.00022759,2]
[313085529,1706736590998,-150.0,0.00022759,2]
[313085530,1706736591022,-150.0,0.00022761,2]
[313085531,1706736591046,-150.0,0.00022761,2]
[313085532,1706736591068,-150.0,0.00022763,2]
[313085533,1706736591090,-150.0,0.00022764,2]
[313085534,1706736591112,-200.0,0.00022764,2]
[313085535,1706736591135,-202.164828,0.00022764,2]
[313085536,1706736591160,-150.0,0.00022769,2]
[313085537,1706736591190,-150.0,0.00022774,2]
[313085538,1706736591216,-150.0,0.00022781,2]
[313085539,1706736591254,-150.0,0.00022783,2]
[313085540,1706736591285,-150.0,0.00022786,2]
[313085541,1706736591314,-150.0,0.00022788,2]
[313085542,1706736591344,-150.0,0.00022791,2]
[313085543,1706736591370,-155.0,0.00022793,2]
[313085544,1706736591392,-481.02562885,0.00022793,2]
[313085545,1706736591415,-155.0744322,0.00022796,2]
[313085546,1706736591438,-4635.5485652,0.00022796,2]
[313085547,1706736591461,-1374.81657454,0.00022796,2]
[313085548,1706736591487,-541.97303747,0.00022797,2]
[313085549,1706736591511,-3399.2942,0.00022797,2]
[313085550,1706736591535,-181.70536632,0.00022797,2]
[313085551,1706736591559,-1000.0,0.00022798,2]
[313085552,1706736591584,-150.0,0.00022799,2]
[313085553,1706736591606,-155.27871789,0.000228,2]
[313085554,1706736591631,-221.13755376,0.00022805,2]
[313085555,1706736591656,-150.0,0.00022807,2]
[313085556,1706736591679,-150.0,0.00022814,2]
[313085557,1706736591700,-200.0,0.00022815,2]
[313085558,1706736591720,-800.0,0.00022815,2]
[313085559,1706736591745,-800.0,0.00022816,2]
[313085560,1706736591770,-150.0,0.00022829,2]
[313085561,1706736591792,-150.0,0.00022829,2]
[313085562,1706736591815,-150.0,0.0002283,2]
[313085563,1706736591839,-150.0,0.00022839,2]
[313085564,1706736591864,-150.0,0.00022847,2]
[313085565,1706736591888,-204.0,0.00022855,2]
[313085566,1706736591913,-300.0,0.00022864,2]
[313085567,1706736591939,-150.0,0.00022864,2]
[313085568,1706736591963,-150.0,0.00022872,2]
[313085569,1706736591995,-150.0,0.00022874,2]
[313085570,1706736592017,-150.0,0.00022878,2]
[313085571,1706736592039,-150.0,0.00022884,2]
[313085572,1706736592062,-150.0,0.00022889,2]
[313085573,1706736592082,-428.71667088,0.00022895,5]
[313085574,1706736592102,-269.09022539,0.00022896,2]
[313085575,1706736592126,-150.0,0.00022898,2]
[313085576,1706736592147,-245000.0,0.00022899,2]
[313085577,1706736592167,-540.2857,0.00022899,2]
[313085578,1706736592192,-352.6615,0.00022899,2]
[313085579,1706736592213,-4938.7382,0.00022899,2]
[313085580,1706736592242,-557.0,0.00022899,2]
[313085581,1706736592265,-390081.92187697,0.000229,2]
[313085582,1706736598317,178.28568514,0.00022464,2]
[313085583,1706736603332,178.28568511,0.00022482,2]
[313085584,1706736608340,178.28568511,0.00022499,2]
[313085585,1706736631187,282.89706329,0.00022499,2]
[313085606,1706736632749,940.66361279,0.00022501,2]
[313085607,1706736633871,302.37535958,0.00022896,10]
[313085612,1706736635020,-155.0,0.00022516,2]
[313085613,1706736635030,-155.0,0.00022516,2]
[313085614,1706736635040,-303.04688425,0.00022516,2]
[313085615,1706736635050,-178.28568511,0.00022517,2]
[313085616,1706736635060,-1511.94737315,0.00022534,2]
[313085617,1706736635070,-178.28568511,0.00022535,2]
[313085618,1706736635080,-178.28568511,0.00022552,2]
[313085619,1706736635090,-3037.94768246,0.0002256,2]
[313085620,1706736635099,-178.28568511,0.0002257,2]
[313085621,1706736635109,-501.43020335,0.00022841,2]
[313085622,1706736635125,-229.23979665,0.00022841,2]
[313085623,1706736635135,-204.0,0.00022855,2]
[313085624,1706736635145,-500.0,0.00022885,2]
[313085625,1706736635154,-501.6691,0.00022885,2]
[313085626,1706736635164,-578.89110078,0.00022885,2]
[313085627,1706736635176,-292.16600001,0.00022885,2]
[313085628,1706736635189,-128.94289921,0.00022885,2]
[313085629,1706736635201,-271.4136,0.00022885,2]
[313085630,1706736635210,-187.14142257,0.00022887,2]
[313085631,1706736635220,-11.14705368,0.00022895,2]
[313085632,1706736635242,-173.30160337,0.00022895,2]
[313085633,1706736635252,-1036.25188658,0.00022895,2]
[313085636,1706736635268,-499.6034895,0.00022895,2]
[313085640,1706736635305,11221.88801498,0.00022501,2]
[313085642,1706736635326,-526.40835608,0.00022895,2]
[313085643,1706736635338,-1567.2118495,0.00022895,2]
[313085644,1706736635347,-248.82203226,0.00022895,2]
[313085645,1706736635357,-281.29640367,0.00022895,2]
[313085646,1706736635367,-228.78848612,0.00022896,2]
[313085647,1706736635377,-177.95955757,0.00022896,2]
[313085648,1706736635387,-214.58637741,0.00022896,2]
[313085649,1706736635397,-317.92623857,0.00022896,2]
[313085650,1706736635407,-94.62204489,0.00022896,10]
[313085651,1706736635417,-249.46647659,0.00022896,2]
[313085652,1706736635427,-500.0,0.00022896,2]
[313085653,1706736635437,-500.0,0.00022896,2]
[313085654,1706736635446,-500.0,0.00022896,2]
[313085655,1706736635456,-500.0,0.00022896,2]
[313085656,1706736635466,-400.91353198,0.00022896,2]
[313085657,1706736635476,-500.0,0.00022896,2]
[313085658,1706736635486,-500.0,0.00022896,2]
[313085659,1706736635495,-500.0,0.00022896,2]
[313085660,1706736635507,-500.0,0.00022896,2]
[313085661,1706736635516,-500.0,0.00022896,2]
[313085662,1706736635525,-376.81641704,0.00022896,2]
[313085663,1706736635535,-197.72412545,0.00022896,2]
[313085664,1706736635544,-1059746.75494357,0.00022897,2]
[313085665,1706736635553,-337.26118422,0.00022897,2]
[313085666,1706736635563,-234.25216628,0.00022898,2]
[313085667,1706736635573,-158.5191036,0.00022898,2]
[313085668,1706736635582,-180.44694873,0.00022898,2]
[313085669,1706736635592,-3333.08138673,0.00022898,2]
[313085670,1706736635602,-204.35837107,0.00022898,2]
[313085671,1706736635611,-508.95671337,0.00022898,2]
[313085672,1706736635621,-1142.90256945,0.00022898,2]
[313085673,1706736635631,-8179.71152361,0.00022898,2]
[313085674,1706736635641,-156.93056967,0.00022898,2]
[313085675,1706736635651,-156.10718307,0.00022898,2]
[313085676,1706736635660,-242.59258344,0.00022898,2]
[313085677,1706736635671,-90119.04916936,0.00022899,2]
[313085678,1706736635681,-103643.23083323,0.000229,2]
[313085679,1706736635691,-156.46520275,0.000229,2]
[313085680,1706736635701,-150.0,0.000229,2]
[313085681,1706736635710,-2816.10851937,0.000229,2]
[313085682,1706736635720,-2816.10851923,0.000229,2]
[313085683,1706736635730,-2816.10851923,0.000229,2]
[313085684,1706736635740,-2816.10851923,0.000229,2]
[313085685,1706736635749,-749.41219468,0.000229,2]
[313085686,1706736635764,-2816.10851923,0.000229,2]
[313085687,1706736635774,-2816.10851923,0.000229,2]
[313085688,1706736635784,-2816.10851923,0.000229,2]
[313085689,1706736635794,-2816.10851923,0.000229,2]
[313085690,1706736635804,-2816.10851923,0.000229,2]
[313085691,1706736635813,-150.0,0.00022903,2]
[313085692,1706736635823,-158.22,0.00022904,2]
[313085693,1706736635833,-150.0,0.0002291,2]
[313085694,1706736635843,-150.0,0.00022921,2]
[313085695,1706736635852,-150.0,0.00022924,2]
[313085696,1706736635862,-150.0,0.00022927,2]
[313085697,1706736635872,-150.0,0.0002293,2]
[313085698,1706736635882,-150.0,0.00022937,2]
[313085699,1706736635891,-150.0,0.00022943,2]
[313085700,1706736635901,-150.0,0.00022953,2]
[313085701,1706736635912,-150.0,0.00022957,2]
[313085702,1706736635921,-150.0,0.00022961,2]
[313085703,1706736635930,-150.0,0.00022963,2]
[313085704,1706736635940,-150.0,0.00022963,2]
[313085705,1706736635950,-150.0,0.00022974,2]
[313085706,1706736635960,-216.03758245,0.00022975,2]
[313085707,1706736635969,-300.0,0.00022977,2]
[313085708,1706736635978,-150.0,0.00022985,2]
[313085709,1706736635988,-150.0,0.00022985,2]
[313085710,1706736635997,-187.14142257,0.0002299,2]
[313085711,1706736636011,-187.14142257,0.0002299,2]
[313085712,1706736636021,-202.0,0.00022994,2]
[313085713,1706736636032,-354.42530625,0.00022994,2]
[313085714,1706736636042,-151.0201,0.00022994,3]
[313085715,1706736636051,-151.0201,0.00022994,3]
[313085716,1706736636061,-151.0201,0.00022994,3]
[313085717,1706736636070,-151.0201,0.00022994,3]
[313085718,1706736636080,-151.0201,0.00022994,3]
[313085719,1706736636090,-151.0201,0.00022994,3]
[313085720,1706736636099,-151.0201,0.00022994,3]
[313085721,1706736636109,-151.0201,0.00022994,3]
[313085722,1706736636119,-151.0201,0.00022994,3]
[313085723,1706736636128,-385.5449845,0.00022995,2]
[313085724,1706736636137,-228.31643771,0.00022995,2]
[313085725,1706736636147,-163.79827886,0.00022995,2]
[313085726,1706736636156,-187.14539073,0.00022995,2]
[313085727,1706736636166,-164.34738147,0.00022995,2]
[313085728,1706736636175,-158.30384599,0.00022996,2]
[313085729,1706736636185,-156.03670306,0.00022996,2]
[313085730,1706736636195,-155.0,0.00022996,2]
[313085731,1706736636205,-155.19414547,0.00022996,2]
[313085732,1706736636214,-161.10503934,0.00022996,2]
[313085733,1706736636224,-157.98255968,0.00022996,2]
[313085734,1706736636233,-2545.01180366,0.00022996,2]
[313085735,1706736636243,-162.96938674,0.00022996,2]
[313085736,1706736636252,-285.22294561,0.00022996,2]
[313085737,1706736636266,-196.2404476,0.00022996,2]
[313085738,1706736636276,-3411.90530858,0.00022996,2]
[313085739,1706736636457,-201.2269708,0.00022996,2]
[313085740,1706736636467,-193.62669506,0.00022996,2]
[313085741,1706736636477,-155.0,0.00022996,2]
[313085742,1706736636486,-318.39608403,0.00022996,2]
[313085743,1706736636496,-500.0,0.00022996,2]
[313085744,1706736636507,-322.72479377,0.00022996,2]
[313085745,1706736636515,-155.0,0.00022996,2]
[313085746,1706736636525,-181.65130825,0.00022996,2]
[313085747,1706736636534,-384.9164604,0.00022996,2]
[313085748,1706736636543,-155.99830447,0.00022996,2]
[313085749,1706736636552,-155.1761761,0.00022996,2]
[313085750,1706736636561,-2605.49270958,0.00022996,2]
[313085751,1706736636572,-155.0,0.00022996,2]
[313085752,1706736636582,-669.93186281,0.00022996,2]
[313085753,1706736636591,-241.87504657,0.00022996,2]
[313085754,1706736636601,-249.44582608,0.00022996,2]
[313085755,1706736636611,-157.19234731,0.00022996,2]
[313085756,1706736636621,-324.53325712,0.00022996,2]
[313085757,1706736636630,-1943.3553205,0.00022996,2]
[313085758,1706736636639,-156.49884071,0.00022996,2]
[313085759,1706736636651,-235.2545301,0.00022996,2]
[313085760,1706736636661,-701.01986545,0.00022996,2]
[313085761,1706736636671,-1691.88156675,0.00022996,2]
[313085762,1706736636681,-150.0,0.00022996,2]
[313085763,1706736636690,-196.73149875,0.00022997,2]
[313085764,1706736636700,-155.3324332,0.00022997,2]
[313085765,1706736636709,-277.17272826,0.00022997,2]
[313085766,1706736636720,-507.36267549,0.00022997,2]
[313085767,1706736636730,-200.4169865,0.00022997,2]
[313085768,1706736636739,-461.70697186,0.00022997,2]
[313085769,1706736636749,-269.10358295,0.00022997,2]
[313085770,1706736636761,-1066.91620343,0.00022997,2]
[313085771,1706736636771,-156.2918762,0.00022997,2]
[313085772,1706736636780,-156.37062616,0.00022997,2]
[313085773,1706736636790,-156.1233509,0.00022997,2]
[313085774,1706736636799,-212.07944382,0.00022997,2]
[313085775,1706736636809,-156.4563569,0.00022997,2]
[313085776,1706736636818,-156.32930889,0.00022997,2]
[313085777,1706736636828,-475.44124884,0.00022997,2]
[313085778,1706736636838,-150.0,0.00022997,2]
[313085779,1706736636847,-201.90759892,0.00022998,2]
[313085780,1706736636857,-418.25522566,0.00022998,2]
[313085781,1706736636867,-219.43998333,0.00022998,2]
[313085782,1706736636876,-1643.49617115,0.00022998,2]
[313085783,1706736636886,-156.80982196,0.00022998,2]
[313085784,1706736636895,-335.75552564,0.00022998,2]
[313085785,1706736636905,-190.54461324,0.00022998,2]
[313085786,1706736636914,-261.17719989,0.00022998,2]